[Event "GrandPrix_30.05"]
[Site "Chess.com"]
[Date "2020.05.30"]
[Round "6"]
[White "tsvet2005"]
[Black "Poghosyan_Suren"]
[Result "1-0"]
[WhiteElo "2249"]
[BlackElo "2123"]
[TimeControl "600+2"]
[EndTime "10:49:39 PDT"]
[Termination "tsvet2005 won by resignation"]

1. d4 {[%clk 0:10:01.9]} 1... Nf6 {[%clk 0:09:57.3]} 2. c4 {[%clk 0:10:02.8]}
2... c5 {[%clk 0:09:45.7]} 3. d5 {[%clk 0:10:03.6]} 3... b5 {[%clk 0:09:42.1]}
4. cxb5 {[%clk 0:10:05.5]} 4... a6 {[%clk 0:09:43.4]} 5. bxa6 {[%clk 0:10:07.4]}
5... Bxa6 {[%clk 0:09:44.7]} 6. Nc3 {[%clk 0:10:08.7]} 6... g6 {[%clk 0:09:45]}
7. e4 {[%clk 0:10:10.2]} 7... Bxf1 {[%clk 0:09:46]} 8. Kxf1 {[%clk 0:10:12.1]}
8... d6 {[%clk 0:09:46.1]} 9. g3 {[%clk 0:10:13.4]} 9... Bg7 {[%clk 0:09:47.4]}
10. Kg2 {[%clk 0:10:15]} 10... O-O {[%clk 0:09:48.7]} 11. Nf3 {[%clk 0:10:16.3]}
11... Nbd7 {[%clk 0:09:50.2]} 12. a4 {[%clk 0:10:15.2]} 12... Ra6 {[%clk
0:09:51.1]} 13. Qc2 {[%clk 0:10:06.7]} 13... Qa8 {[%clk 0:09:50.9]} 14. Nb5
{[%clk 0:10:06.8]} 14... Qb7 {[%clk 0:09:47.9]} 15. Ra3 {[%clk 0:10:03.9]} 15...
e6 {[%clk 0:09:28.4]} 16. dxe6 {[%clk 0:09:12.7]} 16... fxe6 {[%clk 0:09:27]}
17. Ng5 {[%clk 0:09:04.6]} 17... d5 {[%clk 0:08:58.7]} 18. exd5 {[%clk
0:09:00.2]} 18... exd5 {[%clk 0:08:54.9]} 19. Re1 {[%clk 0:08:50.3]} 19... h6
{[%clk 0:08:20.2]} 20. Ne6 {[%clk 0:08:35.4]} 20... Re8 {[%clk 0:06:30]} 21.
Nbc7 {[%clk 0:08:32.7]} 21... Raxe6 {[%clk 0:06:29.8]} 22. Nxe6 {[%clk
0:08:28.2]} 22... d4+ {[%clk 0:06:00.8]} 23. f3 {[%clk 0:08:15.4]} 23... Kf7
{[%clk 0:05:15]} 24. Nxc5 {[%clk 0:06:45.8]} 24... Qd5 {[%clk 0:04:22.8]} 25.
Rxe8 {[%clk 0:06:32.8]} 25... Nxc5 {[%clk 0:04:14.8]} 26. Rc8 {[%clk 0:06:22.7]}
26... Nfd7 {[%clk 0:04:13.9]} 27. b4 {[%clk 0:06:13.7]} 27... Ne6 {[%clk
0:03:50.8]} 28. Qc4 {[%clk 0:06:02.4]} 28... Qe5 {[%clk 0:03:51.7]} 29. Rc6
{[%clk 0:05:54.9]} 29... Nf8 {[%clk 0:03:40.1]} 30. a5 {[%clk 0:05:47]} 30...
Qe1 {[%clk 0:03:02.8]} 31. a6 {[%clk 0:05:33.9]} 31... d3 {[%clk 0:02:57.1]} 32.
Qxd3 {[%clk 0:05:22.9]} 32... Bd4 {[%clk 0:02:55.3]} 33. Be3 {[%clk 0:05:16.2]}
33... Qxb4 {[%clk 0:02:24.4]} 34. Bxd4 {[%clk 0:05:07.1]} 34... Nxd4 {[%clk
0:02:23.4]} 35. Qc4+ {[%clk 0:05:07.5]} 1-0

[Event "GrandPrix_30.05"]
[Site "Chess.com"]
[Date "2020.05.30"]
[Round "6"]
[White "Novoselski"]
[Black "Promacherr"]
[Result "0-1"]
[WhiteElo "2307"]
[BlackElo "2210"]
[TimeControl "600+2"]
[EndTime "10:49:45 PDT"]
[Termination "Promacherr won by resignation"]

1. d4 {[%clk 0:10:01.9]} 1... d5 {[%clk 0:09:59.9]} 2. c4 {[%clk 0:10:00.3]}
2... c6 {[%clk 0:10:01]} 3. e3 {[%clk 0:09:58.4]} 3... Nf6 {[%clk 0:10:01.7]} 4.
Nc3 {[%clk 0:09:58.3]} 4... e6 {[%clk 0:10:01.1]} 5. Nf3 {[%clk 0:09:56.9]} 5...
Nbd7 {[%clk 0:10:01.5]} 6. Bd3 {[%clk 0:09:52.8]} 6... Bd6 {[%clk 0:10:02.1]} 7.
Qc2 {[%clk 0:09:31.7]} 7... dxc4 {[%clk 0:09:33.7]} 8. Bxc4 {[%clk 0:09:31.3]}
8... b5 {[%clk 0:09:35.2]} 9. Be2 {[%clk 0:09:30.1]} 9... a6 {[%clk 0:09:35.1]}
10. O-O {[%clk 0:08:59.7]} 10... O-O {[%clk 0:09:34.4]} 11. Rd1 {[%clk 0:08:50]}
11... Qe7 {[%clk 0:09:34.5]} 12. Ng5 {[%clk 0:08:39]} 12... Bb7 {[%clk
0:09:05.4]} 13. Bf3 {[%clk 0:08:34]} 13... e5 {[%clk 0:08:58.3]} 14. Nge4 {[%clk
0:08:27.8]} 14... Bc7 {[%clk 0:08:36.6]} 15. Nxf6+ {[%clk 0:08:20.1]} 15... Nxf6
{[%clk 0:08:38.5]} 16. Ne4 {[%clk 0:08:14.2]} 16... exd4 {[%clk 0:08:09.6]} 17.
Nxf6+ {[%clk 0:08:04.8]} 17... Qxf6 {[%clk 0:08:11.5]} 18. exd4 {[%clk 0:07:57]}
18... Rad8 {[%clk 0:07:58.8]} 19. Be3 {[%clk 0:07:55.6]} 19... Bb6 {[%clk
0:07:09.8]} 20. Qe4 {[%clk 0:07:22.3]} 20... Rfe8 {[%clk 0:07:04.7]} 21. Qg4
{[%clk 0:07:21.5]} 21... Bc8 {[%clk 0:06:09.5]} 22. Qg3 {[%clk 0:07:19.1]} 22...
h6 {[%clk 0:04:47.2]} 23. Rac1 {[%clk 0:07:11.7]} 23... Rd6 {[%clk 0:04:47.9]}
24. h3 {[%clk 0:06:10.7]} 24... Bb7 {[%clk 0:04:29.7]} 25. Qg4 {[%clk
0:05:43.4]} 25... Red8 {[%clk 0:04:23.2]} 26. Qe4 {[%clk 0:05:04.1]} 26... Bxd4
{[%clk 0:03:18.1]} 27. Bxd4 {[%clk 0:04:57.7]} 27... Rxd4 {[%clk 0:03:20]} 28.
Rxd4 {[%clk 0:04:56.6]} 28... Rxd4 {[%clk 0:03:18.3]} 29. Qe8+ {[%clk
0:04:54.2]} 29... Kh7 {[%clk 0:03:19.2]} 30. Bxc6 {[%clk 0:04:31.7]} 30... Bxc6
{[%clk 0:03:21.1]} 31. Qxc6 {[%clk 0:04:10]} 31... Rd1+ {[%clk 0:03:21]} 0-1

[Event "GrandPrix_30.05"]
[Site "Chess.com"]
[Date "2020.05.30"]
[Round "6"]
[White "ChessQueen"]
[Black "Lukianoo"]
[Result "0-1"]
[WhiteElo "2362"]
[BlackElo "2585"]
[TimeControl "600+2"]
[EndTime "10:49:56 PDT"]
[Termination "Lukianoo won by checkmate"]

1. e4 {[%clk 0:10:01.9]} 1... c6 {[%clk 0:10:00]} 2. c4 {[%clk 0:10:02.4]} 2...
e5 {[%clk 0:09:51.8]} 3. Nf3 {[%clk 0:09:44.6]} 3... d6 {[%clk 0:09:46.1]} 4. d4
{[%clk 0:09:44.4]} 4... Nd7 {[%clk 0:09:46.7]} 5. Nc3 {[%clk 0:09:41.8]} 5...
Ngf6 {[%clk 0:09:47.2]} 6. Be2 {[%clk 0:09:27.3]} 6... Be7 {[%clk 0:09:46.5]} 7.
O-O {[%clk 0:09:25.9]} 7... O-O {[%clk 0:09:45.7]} 8. Re1 {[%clk 0:09:20.6]}
8... a6 {[%clk 0:09:42.4]} 9. d5 {[%clk 0:08:40.9]} 9... cxd5 {[%clk 0:09:39.7]}
10. cxd5 {[%clk 0:08:36]} 10... b5 {[%clk 0:09:39.5]} 11. b4 {[%clk 0:08:30.4]}
11... Nb6 {[%clk 0:09:39.9]} 12. Nd2 {[%clk 0:08:05.6]} 12... Bd7 {[%clk
0:09:38.5]} 13. Bb2 {[%clk 0:07:53.3]} 13... Rc8 {[%clk 0:09:38.8]} 14. Rc1
{[%clk 0:07:52.2]} 14... Rc7 {[%clk 0:09:33.4]} 15. Bd3 {[%clk 0:07:15.3]} 15...
Qb8 {[%clk 0:09:29]} 16. Qf3 {[%clk 0:07:02.4]} 16... Rfc8 {[%clk 0:09:24.6]}
17. h3 {[%clk 0:06:50.7]} 17... g6 {[%clk 0:09:00.5]} 18. Qe3 {[%clk 0:06:28.9]}
18... Nh5 {[%clk 0:08:56.6]} 19. Ne2 {[%clk 0:06:25.3]} 19... Na4 {[%clk
0:08:40]} 20. Rxc7 {[%clk 0:06:14.2]} 20... Rxc7 {[%clk 0:08:38.7]} 21. Ba1
{[%clk 0:06:10.2]} 21... Qd8 {[%clk 0:08:26.6]} 22. Nb3 {[%clk 0:06:00.3]} 22...
Bg5 {[%clk 0:08:22.9]} 23. Qf3 {[%clk 0:05:56.5]} 23... Nf4 {[%clk 0:08:01.9]}
24. Nxf4 {[%clk 0:05:45]} 24... Bxf4 {[%clk 0:08:03.8]} 25. Re2 {[%clk
0:04:43.4]} 25... Qc8 {[%clk 0:07:56.3]} 26. Re1 {[%clk 0:03:41]} 26... h5
{[%clk 0:07:54.1]} 27. Qe2 {[%clk 0:02:38.3]} 27... Nc3 {[%clk 0:07:41.1]} 28.
Bxc3 {[%clk 0:02:03.4]} 28... Rxc3 {[%clk 0:07:40.6]} 29. Rd1 {[%clk 0:01:51.3]}
29... h4 {[%clk 0:07:34.1]} 30. Qb2 {[%clk 0:01:49.6]} 30... Bxh3 {[%clk
0:06:44.7]} 31. Bf1 {[%clk 0:01:50.2]} 31... Bg4 {[%clk 0:06:19.2]} 32. Rd3
{[%clk 0:01:47]} 32... Rc2 {[%clk 0:06:06.5]} 33. Qb1 {[%clk 0:01:48.1]} 33...
Be2 {[%clk 0:06:03]} 34. Bxe2 {[%clk 0:01:43.4]} 34... Rxe2 {[%clk 0:06:04.9]}
35. Na5 {[%clk 0:01:22.9]} 35... Qc2 {[%clk 0:05:59.5]} 36. Qxc2 {[%clk
0:01:19.7]} 36... Re1# {[%clk 0:05:59.2]} 0-1

[Event "GrandPrix_30.05"]
[Site "Chess.com"]
[Date "2020.05.30"]
[Round "6"]
[White "Alexander_Donchenko"]
[Black "grunbergmihai"]
[Result "1-0"]
[WhiteElo "2611"]
[BlackElo "2300"]
[TimeControl "600+2"]
[EndTime "10:50:12 PDT"]
[Termination "Alexander_Donchenko won by resignation"]

1. e4 {[%clk 0:09:47.8]} 1... Nf6 {[%clk 0:10:00.3]} 2. e5 {[%clk 0:09:47]} 2...
Nd5 {[%clk 0:10:01.2]} 3. d4 {[%clk 0:09:48]} 3... d6 {[%clk 0:10:02.1]} 4. Nf3
{[%clk 0:09:49.2]} 4... dxe5 {[%clk 0:10:02.7]} 5. Nxe5 {[%clk 0:09:49.6]} 5...
c6 {[%clk 0:10:03.7]} 6. Be2 {[%clk 0:09:48.5]} 6... Bf5 {[%clk 0:10:02.4]} 7.
O-O {[%clk 0:09:48.5]} 7... Nd7 {[%clk 0:10:02.9]} 8. Nf3 {[%clk 0:09:49.5]}
8... e6 {[%clk 0:10:01.8]} 9. c4 {[%clk 0:09:50.4]} 9... N5f6 {[%clk 0:10:02.4]}
10. Nc3 {[%clk 0:09:45.7]} 10... Be7 {[%clk 0:10:02.6]} 11. Nh4 {[%clk
0:09:41.5]} 11... Bg6 {[%clk 0:09:59.8]} 12. Re1 {[%clk 0:09:34.5]} 12... O-O
{[%clk 0:09:59.2]} 13. Nxg6 {[%clk 0:09:34.4]} 13... hxg6 {[%clk 0:09:59.4]} 14.
Bf4 {[%clk 0:09:28.8]} 14... Nb6 {[%clk 0:09:32.1]} 15. b3 {[%clk 0:09:19]}
15... c5 {[%clk 0:07:09.1]} 16. Be3 {[%clk 0:08:59.2]} 16... cxd4 {[%clk
0:05:50]} 17. Qxd4 {[%clk 0:09:01.1]} 17... Qxd4 {[%clk 0:05:44.6]} 18. Bxd4
{[%clk 0:09:03]} 18... Rfd8 {[%clk 0:05:22.7]} 19. Nb5 {[%clk 0:08:43.4]} 19...
Rd7 {[%clk 0:04:10.1]} 20. Red1 {[%clk 0:08:27.1]} 20... Rad8 {[%clk 0:03:59.8]}
21. Be3 {[%clk 0:08:17.2]} 21... Rxd1+ {[%clk 0:02:53.5]} 22. Rxd1 {[%clk
0:08:19.1]} 22... Ra8 {[%clk 0:02:42.3]} 23. Bf3 {[%clk 0:08:13.7]} 23... Nbd7
{[%clk 0:02:13.6]} 24. Bxa7 {[%clk 0:07:36.9]} 24... Bc5 {[%clk 0:02:07.2]} 25.
Bxb7 {[%clk 0:07:33.4]} 25... Rxa7 {[%clk 0:02:07.2]} 26. Nxa7 {[%clk
0:07:32.9]} 26... Bxa7 {[%clk 0:02:09.1]} 27. b4 {[%clk 0:07:34]} 27... Kf8
{[%clk 0:01:52.2]} 28. c5 {[%clk 0:07:33.7]} 28... Nxc5 {[%clk 0:01:01.4]} 29.
bxc5 {[%clk 0:07:33.4]} 29... Bxc5 {[%clk 0:01:03.3]} 30. a4 {[%clk 0:07:32]}
30... Ke7 {[%clk 0:01:02.4]} 31. a5 {[%clk 0:07:31.6]} 31... Ng4 {[%clk
0:01:02.7]} 32. Rd2 {[%clk 0:07:32.3]} 32... Ne5 {[%clk 0:00:55.2]} 33. a6
{[%clk 0:07:31]} 33... Ba7 {[%clk 0:00:53.9]} 34. Kf1 {[%clk 0:07:30.7]} 34...
Nc4 {[%clk 0:00:54.6]} 35. Rc2 {[%clk 0:07:30.3]} 35... Nd6 {[%clk 0:00:52]} 36.
Ke2 {[%clk 0:07:26.9]} 36... Kd7 {[%clk 0:00:52.9]} 37. g3 {[%clk 0:07:23.4]}
37... e5 {[%clk 0:00:53.6]} 38. Bd5 {[%clk 0:07:22.5]} 38... f5 {[%clk
0:00:53.2]} 39. Rc6 {[%clk 0:07:20.2]} 39... Nb5 {[%clk 0:00:51.8]} 40. Kf1
{[%clk 0:07:06.4]} 40... Nc7 {[%clk 0:00:46.6]} 41. Bg2 {[%clk 0:07:06.7]} 41...
g5 {[%clk 0:00:44.9]} 42. Rg6 {[%clk 0:07:04.9]} 42... Ne6 {[%clk 0:00:43.3]}
43. Bd5 {[%clk 0:07:04.9]} 43... Nc7 {[%clk 0:00:42.7]} 44. Rxg7+ {[%clk
0:07:04.2]} 44... Kd6 {[%clk 0:00:43.7]} 45. Bb7 {[%clk 0:07:04.4]} 45... g4
{[%clk 0:00:43.6]} 46. Rf7 {[%clk 0:07:03.3]} 1-0

[Event "GrandPrix_30.05"]
[Site "Chess.com"]
[Date "2020.05.30"]
[Round "6"]
[White "AnotherGrumpy"]
[Black "Winawer81"]
[Result "0-1"]
[WhiteElo "1954"]
[BlackElo "2155"]
[TimeControl "600+2"]
[EndTime "10:50:31 PDT"]
[Termination "Winawer81 won by resignation"]

1. d4 {[%clk 0:09:56.8]} 1... Nf6 {[%clk 0:10:00]} 2. c4 {[%clk 0:09:55]} 2...
e6 {[%clk 0:10:00.3]} 3. Nf3 {[%clk 0:09:56.3]} 3... b6 {[%clk 0:10:00.9]} 4. g3
{[%clk 0:09:56.3]} 4... Bb4+ {[%clk 0:09:56.7]} 5. Bd2 {[%clk 0:09:55.6]} 5...
Be7 {[%clk 0:09:56.2]} 6. Bg2 {[%clk 0:09:55.4]} 6... c6 {[%clk 0:09:50.4]} 7.
O-O {[%clk 0:09:54.9]} 7... d5 {[%clk 0:09:50.1]} 8. Qc2 {[%clk 0:09:54.9]} 8...
O-O {[%clk 0:09:33.3]} 9. Nc3 {[%clk 0:09:44.6]} 9... Ba6 {[%clk 0:09:22.6]} 10.
cxd5 {[%clk 0:09:38.3]} 10... cxd5 {[%clk 0:09:21.7]} 11. Rfe1 {[%clk
0:09:18.8]} 11... Nc6 {[%clk 0:08:26.5]} 12. Rac1 {[%clk 0:09:11.2]} 12... Rc8
{[%clk 0:08:21]} 13. Qb1 {[%clk 0:09:07.2]} 13... b5 {[%clk 0:07:57]} 14. a3
{[%clk 0:09:00.8]} 14... Qb6 {[%clk 0:07:54.1]} 15. e3 {[%clk 0:08:51.9]} 15...
Na5 {[%clk 0:07:42.3]} 16. Ne5 {[%clk 0:08:47.8]} 16... Nc4 {[%clk 0:07:08.5]}
17. Rcd1 {[%clk 0:08:42.2]} 17... Nxe5 {[%clk 0:06:54.1]} 18. dxe5 {[%clk
0:08:38.6]} 18... Nd7 {[%clk 0:06:54.4]} 19. f4 {[%clk 0:08:00.5]} 19... Bb7
{[%clk 0:06:41.9]} 20. Kh1 {[%clk 0:07:57]} 20... Rfd8 {[%clk 0:06:02.8]} 21.
Ne2 {[%clk 0:07:52.9]} 21... Nc5 {[%clk 0:05:59.2]} 22. Nd4 {[%clk 0:07:52.5]}
22... Ne4 {[%clk 0:05:54.7]} 23. Rf1 {[%clk 0:07:45.6]} 23... Bc5 {[%clk
0:05:49.7]} 24. Be1 {[%clk 0:07:44]} 24... a5 {[%clk 0:04:58.8]} 25. f5 {[%clk
0:07:43.1]} 25... b4 {[%clk 0:04:51.3]} 26. axb4 {[%clk 0:07:41.6]} 26... axb4
{[%clk 0:04:51.1]} 27. fxe6 {[%clk 0:07:32.8]} 27... fxe6 {[%clk 0:04:48.5]} 28.
Bh3 {[%clk 0:07:34.1]} 28... Bxd4 {[%clk 0:04:39.2]} 29. exd4 {[%clk 0:07:34.3]}
29... Ba6 {[%clk 0:04:28.8]} 30. Rf4 {[%clk 0:07:32.4]} 30... Be2 {[%clk
0:04:15.5]} 31. Rc1 {[%clk 0:07:32.2]} 31... g5 {[%clk 0:03:06.3]} 32. Rxc8
{[%clk 0:06:39.4]} 32... Rxc8 {[%clk 0:03:06.4]} 33. Rxe4 {[%clk 0:06:21.8]}
33... dxe4 {[%clk 0:03:06.4]} 34. Qxe4 {[%clk 0:06:23.7]} 34... Bc4 {[%clk
0:02:50.1]} 35. Qe3 {[%clk 0:06:22.1]} 35... Qd8 {[%clk 0:02:41.7]} 36. Kg1
{[%clk 0:06:20.6]} 36... h6 {[%clk 0:02:24.5]} 37. Qe4 {[%clk 0:06:16.1]} 37...
Kg7 {[%clk 0:02:18.5]} 38. Bg4 {[%clk 0:06:11.6]} 38... Qd5 {[%clk 0:02:00]} 39.
Qxd5 {[%clk 0:06:09.1]} 39... Bxd5 {[%clk 0:01:59.6]} 40. Bxb4 {[%clk
0:06:09.4]} 40... Rc2 {[%clk 0:01:58.4]} 41. Bc3 {[%clk 0:05:55.2]} 41... Kg6
{[%clk 0:01:55.8]} 42. h3 {[%clk 0:05:23.7]} 42... h5 {[%clk 0:01:53.6]} 0-1

[Event "GrandPrix_30.05"]
[Site "Chess.com"]
[Date "2020.05.30"]
[Round "6"]
[White "levvard"]
[Black "tacticthunder"]
[Result "1-0"]
[WhiteElo "2065"]
[BlackElo "2207"]
[TimeControl "600+2"]
[EndTime "10:50:48 PDT"]
[Termination "levvard won by resignation"]

1. e4 {[%clk 0:10:01.9]} 1... c5 {[%clk 0:08:51.6]} 2. d4 {[%clk 0:10:01.5]}
2... cxd4 {[%clk 0:08:50.4]} 3. c3 {[%clk 0:10:02.6]} 3... dxc3 {[%clk
0:08:49.3]} 4. Nf3 {[%clk 0:10:02.6]} 4... Nc6 {[%clk 0:08:51.2]} 5. Nxc3 {[%clk
0:10:02.6]} 5... d6 {[%clk 0:08:48.9]} 6. Bc4 {[%clk 0:10:02.7]} 6... e6 {[%clk
0:08:49.6]} 7. O-O {[%clk 0:10:02.9]} 7... Nf6 {[%clk 0:08:50.9]} 8. Bf4 {[%clk
0:10:01.8]} 8... a6 {[%clk 0:08:49.9]} 9. a4 {[%clk 0:10:00.5]} 9... Be7 {[%clk
0:08:47.6]} 10. e5 {[%clk 0:09:55]} 10... dxe5 {[%clk 0:08:44.9]} 11. Qxd8+
{[%clk 0:09:53.2]} 11... Bxd8 {[%clk 0:08:46.8]} 12. Nxe5 {[%clk 0:09:53]} 12...
Nxe5 {[%clk 0:08:16.4]} 13. Bxe5 {[%clk 0:09:54.9]} 13... Bd7 {[%clk 0:08:17.6]}
14. Rfd1 {[%clk 0:09:53.9]} 14... Rc8 {[%clk 0:08:14.3]} 15. b3 {[%clk
0:09:53.1]} 15... Bc6 {[%clk 0:08:10.8]} 16. b4 {[%clk 0:09:48.2]} 16... Bb6
{[%clk 0:07:08]} 17. b5 {[%clk 0:09:44.8]} 17... Bd7 {[%clk 0:07:05.1]} 18. Be2
{[%clk 0:09:36.4]} 18... a5 {[%clk 0:06:59.1]} 19. Ra2 {[%clk 0:09:30.4]} 19...
Nd5 {[%clk 0:05:54.9]} 20. Ne4 {[%clk 0:09:28.1]} 20... O-O {[%clk 0:05:43.5]}
21. Nd6 {[%clk 0:09:20.9]} 21... f6 {[%clk 0:03:37]} 22. Nxc8 {[%clk 0:09:18.9]}
22... Rxc8 {[%clk 0:02:59]} 23. Ba1 {[%clk 0:09:09.6]} 23... Be8 {[%clk
0:02:55.1]} 24. Bg4 {[%clk 0:09:04.4]} 24... f5 {[%clk 0:02:03.1]} 25. Bf3
{[%clk 0:09:02.7]} 25... Bf7 {[%clk 0:02:04.3]} 26. g3 {[%clk 0:09:01.5]} 26...
h6 {[%clk 0:01:57.3]} 27. h4 {[%clk 0:08:58.5]} 27... Rc4 {[%clk 0:01:56.1]} 28.
Kh2 {[%clk 0:08:56.5]} 28... Kh7 {[%clk 0:01:43.9]} 29. Be5 {[%clk 0:08:50.3]}
29... g5 {[%clk 0:01:20.9]} 30. hxg5 {[%clk 0:08:49.9]} 30... hxg5 {[%clk
0:01:22.8]} 31. Rdd2 {[%clk 0:08:45.6]} 31... f4 {[%clk 0:00:39]} 32. Rdc2
{[%clk 0:08:31.3]} 32... fxg3+ {[%clk 0:00:35]} 33. fxg3 {[%clk 0:08:29.8]}
33... Rb4 {[%clk 0:00:25.9]} 34. Rc8 {[%clk 0:08:26]} 34... g4 {[%clk
0:00:13.3]} 35. Bh1 {[%clk 0:08:14.8]} 35... Ne3 {[%clk 0:00:10.7]} 36. Rh8+
{[%clk 0:07:53.8]} 36... Kg6 {[%clk 0:00:11.3]} 37. Rf2 {[%clk 0:07:50]} 37...
Nd5 {[%clk 0:00:10.6]} 38. Rf1 {[%clk 0:07:35.6]} 38... Bd4 {[%clk 0:00:10.4]}
39. Be4+ {[%clk 0:07:19.6]} 39... Kg5 {[%clk 0:00:08.8]} 40. Rxf7 {[%clk
0:07:11.7]} 40... Rb2+ {[%clk 0:00:09.2]} 41. Kh1 {[%clk 0:07:09.7]} 41... Bxe5
{[%clk 0:00:04.2]} 42. Rg8+ {[%clk 0:07:07.7]} 42... Bg7 {[%clk 0:00:05.4]} 43.
Rgxg7+ {[%clk 0:07:04.7]} 43... Kh6 {[%clk 0:00:05.8]} 44. Rg6+ {[%clk
0:07:03.2]} 1-0

[Event "GrandPrix_30.05"]
[Site "Chess.com"]
[Date "2020.05.30"]
[Round "6"]
[White "ZverevLev"]
[Black "Iljin_Timofey"]
[Result "0-1"]
[WhiteElo "2105"]
[BlackElo "2250"]
[TimeControl "600+2"]
[EndTime "10:50:53 PDT"]
[Termination "Iljin_Timofey won by resignation"]

1. e4 {[%clk 0:10:01.9]} 1... c5 {[%clk 0:09:56.4]} 2. Nf3 {[%clk 0:09:59.7]}
2... Nc6 {[%clk 0:09:58.3]} 3. d4 {[%clk 0:09:59.7]} 3... cxd4 {[%clk
0:10:00.2]} 4. Nxd4 {[%clk 0:10:00.6]} 4... Nf6 {[%clk 0:10:02.1]} 5. Nc3 {[%clk
0:09:59.9]} 5... e5 {[%clk 0:10:03.2]} 6. Ndb5 {[%clk 0:09:59.6]} 6... d6 {[%clk
0:10:04]} 7. Bg5 {[%clk 0:09:59.2]} 7... a6 {[%clk 0:10:04.7]} 8. Na3 {[%clk
0:09:58.5]} 8... b5 {[%clk 0:10:05.4]} 9. Bxf6 {[%clk 0:09:58.5]} 9... gxf6
{[%clk 0:10:07.3]} 10. Nd5 {[%clk 0:09:58.7]} 10... Bg7 {[%clk 0:10:08.9]} 11.
g3 {[%clk 0:09:58.4]} 11... f5 {[%clk 0:10:08.8]} 12. Bg2 {[%clk 0:09:57.8]}
12... O-O {[%clk 0:10:08.2]} 13. exf5 {[%clk 0:09:57.3]} 13... Bxf5 {[%clk
0:10:09]} 14. Ne3 {[%clk 0:09:57.4]} 14... Ne7 {[%clk 0:08:40.7]} 15. Nxf5
{[%clk 0:09:56.9]} 15... Nxf5 {[%clk 0:08:42.6]} 16. Qd3 {[%clk 0:09:56.8]}
16... Nd4 {[%clk 0:08:34.2]} 17. c3 {[%clk 0:09:54.5]} 17... Ne6 {[%clk
0:07:31.6]} 18. Bxa8 {[%clk 0:09:52.2]} 18... Qxa8 {[%clk 0:07:33.5]} 19. O-O
{[%clk 0:09:52]} 19... Ng5 {[%clk 0:07:30]} 20. f3 {[%clk 0:09:52.7]} 20... d5
{[%clk 0:07:22.7]} 21. Nc2 {[%clk 0:09:37.9]} 21... e4 {[%clk 0:06:59.9]} 22.
fxe4 {[%clk 0:09:36.8]} 22... dxe4 {[%clk 0:07:01.8]} 23. Qe3 {[%clk 0:09:37.2]}
23... Nf3+ {[%clk 0:06:57.4]} 24. Kg2 {[%clk 0:09:35.5]} 24... f5 {[%clk
0:06:40.6]} 25. Nd4 {[%clk 0:09:25.7]} 25... Bxd4 {[%clk 0:05:32.1]} 26. cxd4
{[%clk 0:09:27.6]} 26... Qd5 {[%clk 0:05:33.4]} 27. Kh1 {[%clk 0:09:07.2]} 27...
Rf6 {[%clk 0:05:02]} 28. Rac1 {[%clk 0:09:03.6]} 28... Qxa2 {[%clk 0:04:51.3]}
29. Rxf3 {[%clk 0:08:57.5]} 29... exf3 {[%clk 0:04:32.5]} 30. Qg5+ {[%clk
0:08:57]} 30... Rg6 {[%clk 0:04:26.9]} 31. Qd8+ {[%clk 0:08:56.4]} 31... Kf7
{[%clk 0:04:21.3]} 32. Rc7+ {[%clk 0:08:58.3]} 32... Ke6 {[%clk 0:04:21.9]} 33.
Re7+ {[%clk 0:08:54]} 33... Kf6 {[%clk 0:04:21.3]} 34. Re5+ {[%clk 0:08:38.4]}
34... Kg7 {[%clk 0:04:14.3]} 35. Re7+ {[%clk 0:07:24.1]} 35... Kh6 {[%clk
0:04:08.9]} 36. Qf8+ {[%clk 0:07:23.8]} 36... Kg5 {[%clk 0:04:09.1]} 37. Re1
{[%clk 0:07:21]} 37... Qxb2 {[%clk 0:03:24.9]} 38. Qe7+ {[%clk 0:07:17.3]} 38...
Rf6 {[%clk 0:03:23.1]} 39. Qe3+ {[%clk 0:06:42.4]} 39... f4 {[%clk 0:03:19.2]}
40. gxf4+ {[%clk 0:06:37.8]} 40... Kg6 {[%clk 0:02:08.1]} 41. Qe8+ {[%clk
0:06:36]} 41... Kh6 {[%clk 0:02:04]} 42. Rg1 {[%clk 0:06:27]} 42... f2 {[%clk
0:01:42.9]} 43. Rf1 {[%clk 0:06:14.7]} 43... Qxd4 {[%clk 0:01:43.5]} 44. Qa8
{[%clk 0:06:06.5]} 44... Qxf4 {[%clk 0:01:40.2]} 45. Qg2 {[%clk 0:06:05.4]}
45... Qf3 {[%clk 0:01:35.3]} 46. Rxf2 {[%clk 0:05:52.1]} 46... Qxg2+ {[%clk
0:01:21.3]} 47. Rxg2 {[%clk 0:05:52.2]} 47... Rf1+ {[%clk 0:01:23.1]} 0-1

[Event "GrandPrix_30.05"]
[Site "Chess.com"]
[Date "2020.05.30"]
[Round "6"]
[White "SergeyVashchilov"]
[Black "SamadovRead"]
[Result "0-1"]
[WhiteElo "2021"]
[BlackElo "1969"]
[TimeControl "600+2"]
[EndTime "10:50:56 PDT"]
[Termination "SamadovRead won by checkmate"]

1. e4 {[%clk 0:10:01.9]} 1... c5 {[%clk 0:10:01]} 2. Nf3 {[%clk 0:10:02.8]} 2...
e6 {[%clk 0:10:01]} 3. b3 {[%clk 0:10:03.6]} 3... Nc6 {[%clk 0:10:00.7]} 4. Bb2
{[%clk 0:10:04.5]} 4... a6 {[%clk 0:09:59.8]} 5. g3 {[%clk 0:10:04.7]} 5... d6
{[%clk 0:09:36.6]} 6. Bg2 {[%clk 0:10:04.3]} 6... Nf6 {[%clk 0:09:37.3]} 7. Qe2
{[%clk 0:10:05.4]} 7... e5 {[%clk 0:09:31.8]} 8. O-O {[%clk 0:10:00.8]} 8... Be7
{[%clk 0:09:31.8]} 9. c3 {[%clk 0:09:57.9]} 9... O-O {[%clk 0:09:31.6]} 10. d4
{[%clk 0:09:59]} 10... exd4 {[%clk 0:08:04.7]} 11. cxd4 {[%clk 0:10:00.9]} 11...
Bg4 {[%clk 0:08:03.9]} 12. h3 {[%clk 0:09:26.2]} 12... Bxf3 {[%clk 0:08:01]} 13.
Bxf3 {[%clk 0:09:27.3]} 13... Nxd4 {[%clk 0:07:59.6]} 14. Bxd4 {[%clk
0:09:27.8]} 14... cxd4 {[%clk 0:08:01.5]} 15. Rd1 {[%clk 0:09:19.8]} 15... Nd7
{[%clk 0:07:49.2]} 16. Nd2 {[%clk 0:09:05.5]} 16... Bf6 {[%clk 0:07:41.1]} 17.
Rac1 {[%clk 0:09:06.5]} 17... Ne5 {[%clk 0:07:36.9]} 18. Bg2 {[%clk 0:09:04]}
18... Rc8 {[%clk 0:06:53.5]} 19. f4 {[%clk 0:08:38.3]} 19... Rxc1 {[%clk
0:06:32.1]} 20. Rxc1 {[%clk 0:08:38.2]} 20... Nc6 {[%clk 0:06:33.2]} 21. Nf3
{[%clk 0:07:22.5]} 21... Re8 {[%clk 0:06:30.3]} 22. Kh2 {[%clk 0:06:45]} 22...
g6 {[%clk 0:06:19.1]} 23. Ne1 {[%clk 0:06:15.1]} 23... h5 {[%clk 0:05:59.3]} 24.
Nd3 {[%clk 0:06:13]} 24... h4 {[%clk 0:05:38.2]} 25. g4 {[%clk 0:06:14.1]} 25...
g5 {[%clk 0:05:38.8]} 26. e5 {[%clk 0:05:07.6]} 26... dxe5 {[%clk 0:05:38.2]}
27. Bxc6 {[%clk 0:05:07.4]} 27... bxc6 {[%clk 0:05:36.2]} 28. fxe5 {[%clk
0:04:09.1]} 28... Qd5 {[%clk 0:05:13]} 29. Qd2 {[%clk 0:03:09.2]} 29... Bxe5+
{[%clk 0:04:56.2]} 30. Kg1 {[%clk 0:03:01.7]} 30... Bg7 {[%clk 0:04:49.1]} 31.
Rc5 {[%clk 0:02:07.7]} 31... Qf3 {[%clk 0:04:46.5]} 32. Rxg5 {[%clk 0:02:08.2]}
32... Qg3+ {[%clk 0:04:40.4]} 33. Kf1 {[%clk 0:02:07.1]} 33... Qxh3+ {[%clk
0:04:40.5]} 34. Kg1 {[%clk 0:02:08.6]} 34... Re3 {[%clk 0:04:05.5]} 35. Nf2
{[%clk 0:02:09.3]} 35... Rg3# {[%clk 0:04:05.2]} 0-1